[Event "Turkish Club Cup 2019"]
[Site "Konya"]
[Date "2019.07.17"]
[Round "3"]
[White "Dogan, Eylem Su"]
[Black "Ozgur, Sina"]
[Result "0-1"]
[ECO "D94"]
[WhiteElo "1285"]
[BlackElo "1524"]
[Annotator "NA"]
[PlyCount "86"]
[EventDate "2019.07.16"]
[EventType "team-tourn"]
[EventCountry "TUR"]
[SourceTitle "playchess.com"]
[Source "ChessBase"]
[SourceQuality "1"]
[TimeControl "5400+30"]

1. d4 {[%emt 0:00:30]} Nf6 {[%emt 0:00:30]} 2. c4 {[%emt 0:00:00]} g6 {[%emt 0:00:30]} 3. Nc3 {[%emt 0:00:00]} d5 {[%emt 0:00:00]} 4. Nf3 {[%emt 0:00:30]} Bg7 {[%emt 0:00:00]} 5. e3 {[%emt 0:01:30]} O-O {[%emt 0:00:30]} 6. Bd3 {[%emt 0:00:30]} c5 {[%emt 0:01:30]} 7. b3 {[%emt 0:06:30]} Nc6 {[%emt 0:00:30]} 8. Bb2 {[%emt 0:01:30]} cxd4 {[%emt 0:04:30]} 9. Nxd4 {[%emt 0:01:30]} e5 {[%emt 0:02:30]} 10. Nxc6 {[%emt 0:03:30]} bxc6 {[%emt 0:00:30]} 11. cxd5 {[%emt 0:00:30]} cxd5 {[%emt 0:00:00]} 12. Bb5 {[%emt 0:03:30]} Qd6 {[%emt 0:03:00]} 13. O-O {[%emt 0:05:30]} a6 {[%emt 0:01:30]} 14. Be2 {[%emt 0:01:30]} Rd8 {[%emt 0:01:30]} 15. Rc1 {[%emt 0:05:30]} Bb7 {[%emt 0:01:30]} 16. Qd3 {[%emt 0:03:30]} Rac8 {[%emt 0:01:30]} 17. Rcd1 {[%emt 0:02:30]} Rc7 {[%emt 0:06:30]} 18. h3 {[%emt 0:06:30]} Rcd7 {[%emt 0:02:30]} 19. Na4 {[%emt 0:03:30]} d4 {[%emt 0:05:30]} 20. exd4 {[%emt 0:04:30]} exd4 {[%emt 0:01:30]} 21. f3 {[%emt 0:02:30]} Nh5 {[%emt 0:01:30]} 22. Bc1 {[%emt 0:05:30]} Qg3 {[%emt 0:03:30]} 23. Rf2 {[%emt 0:03:30]} Be5 {[%emt 0:14:30]} 24. f4 {[%emt 0:02:30]} Nxf4 {[%emt 0:11:30]} 25. Qxg3 {[%emt 0:00:30]} Nxe2+ {[%emt 0:00:30]} 26. Rxe2 {[%emt 0:00:30]} Bxg3 {[%emt 0:00:30]} 27. Rd3 {[%emt 0:03:30]} Bh4 {[%emt 0:02:30]} 28. Bf4 {[%emt 0:03:30]} Bc6 {[%emt 0:06:30]} 29. Nb6 {[%emt 0:03:30]} Bb5 {[%emt 0:02:30]} 30. Nxd7 {[%emt 0:03:30]} Bxd3 {[%emt 0:00:30]} 31. Rd2 {[%emt 0:00:00]} Rxd7 {[%emt 0:01:30]} 32. Rxd3 {[%emt 0:00:00]} Be1 {[%emt 0:02:30]} 33. Bd2 {[%emt 0:02:30]} Bxd2 {[%emt 0:00:30]} 34. Rxd2 {[%emt 0:00:30]} f5 {[%emt 0:00:30]} 35. Kf2 {[%emt 0:00:30]} Kf7 {[%emt 0:00:00]} 36. Kf3 {[%emt 0:02:56]} Ke6 {[%emt 0:00:00]} 37. g3 {[%emt 0:01:58]} h6 {[%emt 0:01:30]} 38. Kf4 {[%emt 0:06:21]} g5+ {[%emt 0:01:30]} 39. Kf3 {[%emt 0:00:06]} Kd5 {[%emt 0:00:00]} 40. Rd1 {[%emt 0:03:54]} Rc7 {[%emt 0:00:00]} 41. Ke2 {[%emt 0:04:07]} Rc2+ {[%emt 0:00:30]} 42. Kd3 {[%emt 0:01:04]} Rc3+ {[%emt 0:00:30]} 43. Ke2 {[%emt 0:00:46]} Rxg3 {[%emt 0:00:30]} 0-1

[Event "Turkish Club Cup 2019"]
[Site "Konya"]
[Date "2019.07.17"]
[Round "3"]
[White "Ozkan, Elif"]
[Black "Yalcin, Nehir"]
[Result "0-1"]
[ECO "E61"]
[WhiteElo "1240"]
[BlackElo "1392"]
[Annotator "NA"]
[PlyCount "65"]
[EventDate "2019.07.16"]
[EventType "team-tourn"]
[EventCountry "TUR"]
[SourceTitle "playchess.com"]
[Source "ChessBase"]
[SourceQuality "1"]
[TimeControl "5400+30"]

1. d4 Nf6 2. c4 g6 3. Nc3 Bg7 4. Bg5 d6 5. Bxf6 Bxf6 6. e3 Nd7 7. Nf3 Bg7 8. Qc2 O-O 9. Bd3 c5 10. d5 Ne5 11. Nxe5 Bxe5 12. Rc1 Bd7 13. Qd2 a6 14. h4 h5 15. f4 {[%emt 1:00:30]} Bg7 {[%emt 0:51:30]} 16. Ne2 {[%emt 0:07:30]} Qc8 {[%emt 0:06:30]} 17. Ng3 {[%emt 0:01:30]} b5 {[%emt 0:03:30]} 18. Qc2 {[%emt 0:09:30]} Rb8 {[%emt 0:04:30]} 19. Rb1 {[%emt 0:00:53]} Ra8 {[%emt 0:04:30]} 20. a3 {[%emt 0:05:09]} Rb8 {[%emt 0:06:30]} 21. Rf1 {[%emt 0:06:12]} Bf6 {[%emt 0:02:30]} 22. Rh1 {[%emt 0:02:22]} Bg4 {[%emt 0:02:03]} 23. cxb5 {[%emt 0:02:48]} axb5 {[%emt 0:02:40]} 24. f5 {[%emt 0:00:49]} Be5 {[%emt 0:00:38]} 25. Ne2 {[%emt 0:03:22]} c4 {[%emt 0:04:49]} 26. fxg6 {[%emt 0:01:39]} cxd3 {[%emt 0:00:35]} 27. gxf7+ {[%emt 0:00:12]} Rxf7 {[%emt 0:00:54]} 28. Qxd3 {[%emt 0:00:10]} Qf5 {[%emt 0:03:38]} 29. Qxf5 {[%emt 0:00:42]} Bxf5 {[%emt 0:00:17]} 30. Rd1 {[%emt 0:00:51]} Bxb2 {[%emt 0:01:05]} 31. Ng3 {[%emt 0:00:38]} Bc3+ {[%emt 0:00:24]} 32. Kf2 {[%emt 0:01:13]} Bg4+ {[%emt 0:00:30]} 33. Kg1 {[%emt 0:00:30]} 0-1

[Event "Turkish Club Cup 2019"]
[Site "Konya"]
[Date "2019.07.17"]
[Round "3"]
[White "Sahbaz, Bartu"]
[Black "Ince, Eray"]
[Result "0-1"]
[ECO "B06"]
[WhiteElo "1237"]
[BlackElo "1459"]
[Annotator "NA"]
[PlyCount "54"]
[EventDate "2019.07.16"]
[EventType "team-tourn"]
[EventCountry "TUR"]
[SourceTitle "playchess.com"]
[Source "ChessBase"]
[SourceQuality "1"]
[TimeControl "5400+30"]

1. d4 {[%emt 0:00:30]} g6 {[%emt 0:00:30]} 2. Nf3 {[%emt 0:00:30]} Bg7 {[%emt 0:00:00]} 3. e4 {[%emt 0:00:30]} d6 {[%emt 0:00:00]} 4. Bc4 {[%emt 0:01:30]} Nf6 {[%emt 0:00:30]} 5. Qe2 {[%emt 0:01:30]} O-O {[%emt 0:01:30]} 6. O-O {[%emt 0:00:30]} Bg4 {[%emt 0:00:30]} 7. Nbd2 {[%emt 0:04:30]} Nc6 {[%emt 0:02:30]} 8. c3 {[%emt 0:00:30]} e5 {[%emt 0:00:30]} 9. h3 {[%emt 0:00:30]} Bxf3 {[%emt 0:00:30]} 10. Nxf3 {[%emt 0:00:30]} exd4 {[%emt 0:00:30]} 11. Nxd4 {[%emt 0:01:30]} Nxd4 {[%emt 0:00:30]} 12. cxd4 {[%emt 0:00:30]} d5 {[%emt 0:00:30]} 13. e5 {[%emt 0:12:30]} Re8 {[%emt 0:11:30]} 14. Bb3 {[%emt 0:01:30]} Ne4 {[%emt 0:02:30]} 15. h4 {[%emt 0:07:30]} Qxh4 {[%emt 0:01:30]} 16. Bxd5 {[%emt 0:03:30]} Ng3 {[%emt 0:00:00]} 17. fxg3 {[%emt 0:00:30]} Qxd4+ {[%emt 0:00:00]} 18. Qf2 {[%emt 0:02:30]} Qxd5 {[%emt 0:00:30]} 19. Bf4 {[%emt 0:00:30]} Bxe5 {[%emt 0:02:30]} 20. Bxe5 {[%emt 0:03:30]} Rxe5 {[%emt 0:00:30]} 21. Rad1 {[%emt 0:00:30]} Qe6 {[%emt 0:06:30]} 22. Rc1 {[%emt 0:03:30]} Rf5 {[%emt 0:00:30]} 23. Qc2 {[%emt 0:01:30]} Qe3+ {[%emt 0:00:30]} 24. Rf2 {[%emt 0:03:30]} Rxf2 {[%emt 0:00:30]} 25. Qxf2 {[%emt 0:00:30]} Qxc1+ {[%emt 0:00:00]} 26. Kh2 {[%emt 0:00:30]} Rd8 {[%emt 0:00:00]} 27. g4 {[%emt 0:00:00]} Qh6+ {[%emt 0:00:30]} 0-1

[Event "Turkish Club Cup 2019"]
[Site "Konya"]
[Date "2019.07.17"]
[Round "3"]
[White "Sarac, Ayca"]
[Black "Temel, Burcu Melis"]
[Result "0-1"]
[ECO "A85"]
[WhiteElo "1142"]
[BlackElo "1790"]
[Annotator "NA"]
[PlyCount "52"]
[EventDate "2019.07.16"]
[EventType "team-tourn"]
[EventCountry "TUR"]
[SourceTitle "playchess.com"]
[Source "ChessBase"]
[SourceQuality "1"]
[TimeControl "5400+30"]

1. d4 {[%emt 0:00:30]} e6 {[%emt 0:01:30]} 2. c4 {[%emt 0:00:30]} d5 {[%emt 0:00:30]} 3. Nc3 {[%emt 0:03:30]} f5 {[%emt 0:00:30]} 4. Nf3 {[%emt 0:01:30]} Nf6 {[%emt 0:00:00]} 5. Bg5 {[%emt 0:00:30]} c6 {[%emt 0:00:00]} 6. e3 {[%emt 0:00:30]} Bd6 {[%emt 0:00:30]} 7. Qc2 {[%emt 0:03:30]} O-O {[%emt 0:02:30]} 8. Bd3 {[%emt 0:02:30]} h6 {[%emt 0:01:30]} 9. Bh4 {[%emt 0:01:30]} Qe8 {[%emt 0:11:30]} 10. O-O-O {[%emt 0:09:30]} Na6 {[%emt 0:02:30]} 11. a3 {[%emt 0:04:30]} dxc4 {[%emt 0:00:30]} 12. Bxc4 {[%emt 0:01:30]} b5 {[%emt 0:00:30]} 13. Bb3 {[%emt 0:05:30]} b4 {[%emt 0:00:30]} 14. axb4 {[%emt 0:00:30]} Nxb4 {[%emt 0:00:30]} 15. Qe2 {[%emt 0:00:30]} Nfd5 {[%emt 0:00:30]} 16. Bg3 {[%emt 0:04:30]} Be7 {[%emt 0:07:30]} 17. Ne5 {[%emt 0:03:30]} a5 {[%emt 0:07:30]} 18. Ba4 {[%emt 0:03:30]} Ba6 {[%emt 0:08:30]} 19. Qd2 {[%emt 0:04:30]} Bb5 {[%emt 0:01:30]} 20. b3 {[%emt 0:07:30]} Nxc3 {[%emt 0:00:30]} 21. Rde1 {[%emt 0:24:01]} Bxa4 {[%emt 0:02:30]} 22. bxa4 {[%emt 0:00:22]} Nba2+ {[%emt 0:02:30]} 23. Kc2 {[%emt 0:01:08]} c5 {[%emt 0:00:30]} 24. Kd3 {[%emt 0:04:35]} Qxa4 {[%emt 0:02:30]} 25. Nc4 {[%emt 0:01:31]} Rac8 {[%emt 0:02:30]} 26. Ra1 {[%emt 0:01:50]} cxd4 {[%emt 0:00:30]} 0-1

[Event "Turkish Club Cup 2019"]
[Site "Konya"]
[Date "2019.07.17"]
[Round "3"]
[White "Vanlioglu, Ece"]
[Black "Yorgun, Yaren Naz"]
[Result "0-1"]
[ECO "C11"]
[WhiteElo "1096"]
[BlackElo "1819"]
[Annotator "NA"]
[PlyCount "104"]
[EventDate "2019.07.16"]
[EventType "team-tourn"]
[EventCountry "TUR"]
[SourceTitle "playchess.com"]
[Source "ChessBase"]
[SourceQuality "1"]
[TimeControl "5400+30"]

1. e4 e6 2. Nf3 d5 3. Nc3 Nf6 4. e5 Nfd7 5. d4 c5 6. dxc5 Bxc5 7. Bd3 Be7 8. O-O Nc6 9. Bf4 a6 10. Qe2 O-O 11. Rfd1 Re8 12. h3 Nf8 13. a3 Bd7 14. Nh2 f6 15. Ng4 Nxe5 16. Nxe5 fxe5 17. Bxe5 Bf6 18. Re1 Bc6 19. Qh5 Bxe5 20. Rxe5 Qf6 21. Rae1 {[%emt 0:53:30]} Re7 {[%emt 0:58:30]} 22. Ne2 {[%emt 0:01:30]} g6 {[%emt 0:00:30]} 23. Qg5 {[%emt 0:00:30]} Qxg5 {[%emt 0:04:30]} 24. Rxg5 {[%emt 0:00:30]} e5 {[%emt 0:09:30]} 25. Nd4 {[%emt 0:01:30]} e4 {[%emt 0:02:30]} 26. Nf5 {[%emt 0:01:30]} Ree8 {[%emt 0:02:30]} 27. Be2 {[%emt 0:05:30]} Ne6 {[%emt 0:02:30]} 28. Rg4 {[%emt 0:01:30]} Bd7 {[%emt 0:02:30]} 29. Nd6 {[%emt 0:01:30]} Rf8 {[%emt 0:08:01]} 30. c4 {[%emt 0:01:30]} Nf4 {[%emt 0:03:16]} 31. Rg5 {[%emt 0:00:30]} Bc6 {[%emt 0:07:10]} 32. cxd5 {[%emt 0:01:30]} Bxd5 {[%emt 0:00:10]} 33. Bg4 {[%emt 0:00:30]} h6 {[%emt 0:01:52]} 34. Rxd5 {[%emt 0:02:30]} Nxd5 {[%emt 0:00:30]} 35. Be6+ {[%emt 0:00:30]} Kg7 {[%emt 0:00:30]} 36. Bxd5 {[%emt 0:00:30]} Rad8 {[%emt 0:00:54]} 37. Bxb7 {[%emt 0:00:30]} Rxd6 {[%emt 0:00:04]} 38. Rxe4 {[%emt 0:00:30]} Rd1+ {[%emt 0:01:25]} 39. Kh2 {[%emt 0:00:00]} Rxf2 {[%emt 0:00:00]} 40. b4 {[%emt 0:01:00]} Rd6 {[%emt 0:00:58]} 41. a4 {[%emt 0:00:30]} Rf7 {[%emt 0:00:36]} 42. Ba8 {[%emt 0:00:30]} Rf8 {[%emt 0:01:50]} 43. Bb7 {[%emt 0:00:00]} Rb8 {[%emt 0:00:12]} 44. Re7+ {[%emt 0:00:00]} Kf6 {[%emt 0:00:01]} 45. Rh7 {[%emt 0:00:30]} Rb6 {[%emt 0:00:45]} 46. Bf3 {[%emt 0:00:30]} Rxb4 {[%emt 0:00:16]} 47. Rxh6 {[%emt 0:00:30]} Kg7 {[%emt 0:00:06]} 48. Rh5 {[%emt 0:01:30]} gxh5 {[%emt 0:00:30]} 49. Bxh5 {[%emt 0:00:30]} Rxa4 {[%emt 0:00:00]} 50. g4 {[%emt 0:00:00]} Ra3 {[%emt 0:00:00]} 51. h4 {[%emt 0:00:00]} Rb2+ {[%emt 0:00:19]} 52. Kg1 {[%emt 0:00:00]} Ra1# {[%emt 0:00:00]} 0-1

[Event "Turkish Club Cup 2019"]
[Site "Konya"]
[Date "2019.07.18"]
[Round "4"]
[White "Dogan, Ali Ekber"]
[Black "Ersahin, Bulent"]
[Result "1-0"]
[ECO "A64"]
[WhiteElo "2200"]
[BlackElo "2179"]
[Annotator "NA"]
[PlyCount "65"]
[EventDate "2019.07.16"]
[EventType "team-tourn"]
[EventCountry "TUR"]
[SourceTitle "playchess.com"]
[Source "ChessBase"]
[SourceQuality "1"]
[TimeControl "5400+30"]

1. d4 {[%emt 0:00:30]} Nf6 {[%emt 0:00:30]} 2. c4 {[%emt 0:00:00]} c5 {[%emt 0:00:30]} 3. d5 {[%emt 0:00:00]} e6 {[%emt 0:00:30]} 4. g3 {[%emt 0:00:30]} exd5 {[%emt 0:00:00]} 5. cxd5 {[%emt 0:00:00]} d6 {[%emt 0:00:00]} 6. Nc3 {[%emt 0:00:00]} g6 {[%emt 0:00:00]} 7. Bg2 {[%emt 0:00:00]} Bg7 {[%emt 0:00:00]} 8. Nf3 {[%emt 0:00:00]} O-O {[%emt 0:00:00]} 9. O-O {[%emt 0:00:00]} Re8 {[%emt 0:00:00]} 10. Nd2 {[%emt 0:00:00]} a6 {[%emt 0:00:00]} 11. a4 {[%emt 0:00:30]} Nbd7 {[%emt 0:00:00]} 12. h3 {[%emt 0:00:30]} Rb8 {[%emt 0:01:30]} 13. Nc4 {[%emt 0:00:30]} Ne5 {[%emt 0:00:00]} 14. Na3 {[%emt 0:00:00]} Nh5 {[%emt 0:02:00]} 15. e4 {[%emt 0:00:00]} Bd7 {[%emt 0:00:30]} 16. g4 {[%emt 0:00:30]} Nf6 {[%emt 0:06:30]} 17. g5 {[%emt 0:08:30]} Nh5 {[%emt 0:01:30]} 18. f4 {[%emt 0:00:30]} b5 {[%emt 0:00:30]} 19. fxe5 {[%emt 0:02:30]} b4 {[%emt 0:04:30]} 20. Nc4 {[%emt 0:00:30]} bxc3 {[%emt 0:00:30]} 21. bxc3 {[%emt 0:00:30]} Rxe5 {[%emt 0:07:30]} 22. Qf3 {[%emt 0:26:30]} Re7 {[%emt 0:09:30]} 23. Nxd6 {[%emt 0:13:30]} Bxh3 {[%emt 0:13:30]} 24. Nxf7 {[%emt 0:02:30]} Bxg2 {[%emt 0:00:30]} 25. Nxd8 {[%emt 0:12:30]} Bxf3 {[%emt 0:00:30]} 26. Nc6 {[%emt 0:00:00]} Rf7 {[%emt 0:01:30]} 27. Nxb8 {[%emt 0:00:00]} Bxc3 {[%emt 0:00:30]} 28. Ra3 {[%emt 0:00:30]} Ng3 {[%emt 0:09:30]} 29. Rxc3 {[%emt 0:21:38]} Ne2+ {[%emt 0:00:00]} 30. Kh2 {[%emt 0:00:52]} Nxc3 {[%emt 0:00:00]} 31. d6 {[%emt 0:00:10]} Be2 {[%emt 0:15:30]} 32. Rxf7 {[%emt 0:02:31]} Kxf7 {[%emt 0:00:30]} 33. Bb2 {[%emt 0:00:00]} 1-0

[Event "Turkish Club Cup 2019"]
[Site "Konya"]
[Date "2019.07.18"]
[Round "4"]
[White "Gokcek, Kursat Bugra"]
[Black "Guner, Bulent"]
[Result "0-1"]
[ECO "A47"]
[WhiteElo "2150"]
[BlackElo "1979"]
[Annotator "NA"]
[PlyCount "70"]
[EventDate "2019.07.16"]
[EventType "team-tourn"]
[EventCountry "TUR"]
[SourceTitle "playchess.com"]
[Source "ChessBase"]
[SourceQuality "1"]
[TimeControl "5400+30"]

1. d4 {[%emt 0:00:30]} Nf6 {[%emt 0:00:30]} 2. Bf4 {[%emt 0:00:00]} b6 {[%emt 0:04:30]} 3. e3 {[%emt 0:00:00]} Bb7 {[%emt 0:00:30]} 4. Nd2 {[%emt 0:00:30]} e6 {[%emt 0:00:30]} 5. h3 {[%emt 0:00:30]} Be7 {[%emt 0:00:30]} 6. Ngf3 {[%emt 0:00:00]} O-O {[%emt 0:03:30]} 7. Bd3 {[%emt 0:00:00]} d6 {[%emt 0:01:30]} 8. O-O {[%emt 0:00:30]} c5 {[%emt 0:01:30]} 9. c3 {[%emt 0:00:00]} Nbd7 {[%emt 0:00:00]} 10. Bh2 {[%emt 0:00:00]} Re8 {[%emt 0:02:00]} 11. a4 {[%emt 0:04:30]} a6 {[%emt 0:06:30]} 12. Re1 {[%emt 0:00:00]} Bf8 {[%emt 0:00:30]} 13. Nc4 {[%emt 0:11:00]} Qc7 {[%emt 0:00:30]} 14. Rc1 {[%emt 0:06:30]} b5 {[%emt 0:05:30]} 15. axb5 {[%emt 0:05:30]} axb5 {[%emt 0:00:30]} 16. Na3 {[%emt 0:00:30]} c4 {[%emt 0:01:30]} 17. Bb1 {[%emt 0:11:30]} Qb6 {[%emt 0:09:30]} 18. e4 {[%emt 0:05:30]} e5 {[%emt 0:00:30]} 19. d5 {[%emt 0:09:30]} Nc5 {[%emt 0:01:30]} 20. Qe2 {[%emt 0:00:30]} g6 {[%emt 0:03:30]} 21. Qe3 {[%emt 0:04:30]} Ba6 {[%emt 0:04:30]} 22. Nd2 {[%emt 0:08:30]} Rab8 {[%emt 0:01:30]} 23. Bc2 {[%emt 0:03:30]} Rec8 {[%emt 0:02:30]} 24. Kh1 {[%emt 0:03:30]} Ncd7 {[%emt 0:01:30]} 25. Qf3 {[%emt 0:06:55]} Bh6 {[%emt 0:00:30]} 26. Rcd1 {[%emt 0:00:27]} b4 {[%emt 0:01:30]} 27. cxb4 {[%emt 0:00:39]} Qxb4 {[%emt 0:00:30]} 28. Ndb1 {[%emt 0:00:00]} Qxb2 {[%emt 0:00:30]} 29. g4 {[%emt 0:00:15]} Bg7 {[%emt 0:05:30]} 30. Rg1 {[%emt 0:03:29]} Nc5 {[%emt 0:00:30]} 31. Bg3 {[%emt 0:00:32]} Nb3 {[%emt 0:05:30]} 32. Bh4 {[%emt 0:01:20]} Ne8 {[%emt 0:01:30]} 33. Bg5 {[%emt 0:00:50]} Nd4 {[%emt 0:04:30]} 34. Qg2 {[%emt 0:00:31]} c3 {[%emt 0:02:30]} 35. Rc1 {[%emt 0:00:56]} Be2 {[%emt 0:01:30]} 0-1

[Event "Turkish Club Cup 2019"]
[Site "Konya"]
[Date "2019.07.18"]
[Round "4"]
[White "Cetinkaya, Vedat Ali"]
[Black "Mecit, Emre"]
[Result "0-1"]
[ECO "A30"]
[WhiteElo "2074"]
[BlackElo "2065"]
[Annotator "NA"]
[PlyCount "82"]
[EventDate "2019.07.16"]
[EventType "team-tourn"]
[EventCountry "TUR"]
[SourceTitle "playchess.com"]
[Source "ChessBase"]
[SourceQuality "1"]
[TimeControl "5400+30"]

1. Nf3 {[%emt 0:00:30]} Nf6 {[%emt 0:00:30]} 2. g3 {[%emt 0:00:30]} g6 {[%emt 0:00:00]} 3. b3 {[%emt 0:02:30]} Bg7 {[%emt 0:00:00]} 4. Bb2 {[%emt 0:00:00]} O-O {[%emt 0:00:30]} 5. Bg2 {[%emt 0:00:00]} c5 {[%emt 0:00:00]} 6. c4 {[%emt 0:00:30]} Nc6 {[%emt 0:00:00]} 7. O-O {[%emt 0:01:30]} d6 {[%emt 0:06:30]} 8. Nc3 {[%emt 0:05:30]} a6 {[%emt 0:00:30]} 9. d3 {[%emt 0:01:30]} Rb8 {[%emt 0:00:30]} 10. Qd2 {[%emt 0:08:30]} b5 {[%emt 0:03:30]} 11. Rfd1 {[%emt 0:00:30]} Re8 {[%emt 0:05:30]} 12. Ng5 {[%emt 0:08:30]} Nd4 {[%emt 0:02:30]} 13. e3 {[%emt 0:00:30]} Ne6 {[%emt 0:00:30]} 14. Nge4 {[%emt 0:04:30]} Bb7 {[%emt 0:03:30]} 15. Nxf6+ {[%emt 0:07:30]} Bxf6 {[%emt 0:04:30]} 16. Nd5 {[%emt 0:00:30]} Bxb2 {[%emt 0:01:30]} 17. Qxb2 {[%emt 0:00:30]} Nc7 {[%emt 0:00:00]} 18. Nf4 {[%emt 0:04:30]} Bxg2 {[%emt 0:02:00]} 19. Kxg2 {[%emt 0:00:30]} Qd7 {[%emt 0:01:30]} 20. Rac1 {[%emt 0:01:30]} Ne6 {[%emt 0:00:30]} 21. Nd5 {[%emt 0:02:30]} Ng5 {[%emt 0:10:30]} 22. Qe2 {[%emt 0:04:30]} Ne6 {[%emt 0:02:30]} 23. f4 {[%emt 0:06:30]} Nc7 {[%emt 0:01:30]} 24. Nc3 {[%emt 0:03:30]} f5 {[%emt 0:05:30]} 25. Qf3 {[%emt 0:02:30]} b4 {[%emt 0:00:30]} 26. Nd5 {[%emt 0:02:30]} Nxd5 {[%emt 0:00:30]} 27. Qxd5+ {[%emt 0:00:00]} e6 {[%emt 0:00:00]} 28. Qf3 {[%emt 0:00:00]} e5 {[%emt 0:01:00]} 29. Qd5+ {[%emt 0:03:30]} Qe6 {[%emt 0:08:30]} 30. Qxe6+ {[%emt 0:00:30]} Rxe6 {[%emt 0:00:00]} 31. Kf2 {[%emt 0:00:30]} a5 {[%emt 0:02:00]} 32. d4 {[%emt 0:01:30]} cxd4 {[%emt 0:01:30]} 33. exd4 {[%emt 0:00:30]} exf4 {[%emt 0:01:30]} 34. gxf4 {[%emt 0:02:30]} Re4 {[%emt 0:00:00]} 35. Kf3 {[%emt 0:00:30]} Rbe8 {[%emt 0:00:00]} 36. Rd3 {[%emt 0:07:27]} Re2 {[%emt 0:01:30]} 37. c5 {[%emt 0:03:26]} Rxh2 {[%emt 0:01:30]} 38. Kg3 {[%emt 0:02:29]} Ree2 {[%emt 0:04:30]} 39. cxd6 {[%emt 0:00:34]} Reg2+ {[%emt 0:01:30]} 40. Kf3 {[%emt 0:00:41]} Rxa2 {[%emt 0:00:30]} 41. Kg3 {[%emt 0:00:12]} h5 {[%emt 0:00:30]} 0-1

[Event "Turkish Club Cup 2019"]
[Site "Konya"]
[Date "2019.07.18"]
[Round "4"]
[White "Cingoz, Ozan"]
[Black "Dogan, Osman Fatih"]
[Result "1/2-1/2"]
[ECO "D02"]
[WhiteElo "2030"]
[BlackElo "1787"]
[Annotator "NA RC"]
[PlyCount "149"]
[EventDate "2019.07.16"]
[EventType "team-tourn"]
[EventCountry "TUR"]
[SourceTitle "playchess.com"]
[Source "ChessBase"]
[SourceQuality "1"]
[TimeControl "5400+30"]

1. d4 {[%emt 0:00:30]} Nf6 {[%emt 0:00:30]} 2. Nf3 {[%emt 0:00:30]} d5 {[%emt 0:00:30]} 3. Bf4 {[%emt 0:01:30]} c5 {[%emt 0:00:00]} 4. c3 {[%emt 0:01:30]} Qb6 {[%emt 0:01:00]} 5. Qb3 {[%emt 0:02:30]} Nc6 {[%emt 0:00:30]} 6. e3 {[%emt 0:02:30]} c4 {[%emt 0:00:30]} 7. Qc2 {[%emt 0:00:30]} Bf5 {[%emt 0:00:30]} 8. Qc1 {[%emt 0:00:30]} e6 {[%emt 0:00:00]} 9. h3 {[%emt 0:08:30] D02: 1 d4 d5 2 Nf3 sidelines, including 2...Nf6 3 g3 and 2...Nf6 3 Bf4} (9. Nbd2 Qd8 10. h3 h6 11. Be2 Be7 12. O-O O-O 13. Bd1 b5 14. Bc2 Bxc2 15. Qxc2 Bd6 16. Bxd6 Qxd6 17. e4 dxe4 18. Nxe4 Nxe4 19. Qxe4 Qd5 20. Qxd5 exd5 {1-0 (51) Nisipeanu,L (2674)-Parligras,M (2645) Bucharest 2018}) 9... Be7 {[%emt 0:00:00]} 10. Be2 $146 {[%emt 0:01:30]} ({Predecessor:} 10. Nbd2 h6 11. Be2 O-O {½-½ (45) Tanda,G (1983)-Nunez Ravelo,A (1877) FICGS email 2010}) 10... O-O {[%emt 0:00:00]} 11. O-O {[%emt 0:05:30]} h6 {[%emt 0:00:00]} 12. Nbd2 {[%emt 0:06:30]} Rfc8 {[%emt 0:00:00]} 13. Bd1 {[%emt 0:01:30]} Qd8 {[%emt 0:04:00]} 14. Bc2 {[%emt 0:01:30]} Bxc2 {[%emt 0:00:30]} 15. Qxc2 {[%emt 0:00:30]} b5 {[%emt 0:00:30]} 16. e4 {[%emt 0:04:30]} a5 {[%emt 0:11:30]} 17. a4 {[%emt 0:04:30]} b4 {[%emt 0:05:30]} 18. Rfe1 {[%emt 0:03:30]} b3 {[%emt 0:04:30]} 19. Qd1 {[%emt 0:03:30]} Nb8 {[%emt 0:00:00]} 20. e5 {[%emt 0:02:30]} Nh7 {[%emt 0:01:00]} 21. Nh2 {[%emt 0:05:30]} Nd7 {[%emt 0:03:30]} 22. Re3 {[%emt 0:02:30]} Nhf8 {[%emt 0:01:30]} 23. Rg3 {[%emt 0:04:30]} Bh4 {[%emt 0:01:30]} 24. Rf3 {[%emt 0:03:30]} Ra7 {[%emt 0:01:30]} 25. Ng4 {[%emt 0:00:30]} h5 {[%emt 0:05:30]} 26. Nh2 {[%emt 0:03:30]} Ng6 {[%emt 0:04:30]} 27. Ndf1 {[%emt 0:01:30]} Ngf8 {[%emt 0:03:30]} 28. g4 {[%emt 0:03:30]} hxg4 {[%emt 0:02:30]} 29. Nxg4 {[%emt 0:03:30]} Ng6 {[%emt 0:02:30]} 30. Ng3 {[%emt 0:01:30]} Ndf8 {[%emt 0:01:30]} 31. Bd2 {[%emt 0:01:30]} Nh7 {[%emt 0:01:30]} 32. Kh2 {[%emt 0:03:10]} Ng5 {[%emt 0:03:30]} 33. Bxg5 {[%emt 0:00:55]} Bxg5 {[%emt 0:00:30]} 34. Ne2 {[%emt 0:01:44]} Nh4 {[%emt 0:02:30]} 35. Rg3 {[%emt 0:00:30]} Nf5 {[%emt 0:00:00]} 36. Rg1 {[%emt 0:00:25]} g6 {[%emt 0:01:00]} 37. f4 {[%emt 0:03:48]} Bh4 {[%emt 0:00:30]} 38. Qd2 {[%emt 0:00:49]} Kg7 {[%emt 0:00:30]} 39. Ne3 {[%emt 0:00:00]} Nxe3 {[%emt 0:05:30]} 40. Qxe3 {[%emt 0:00:00]} Qh8 {[%emt 0:00:30]} 41. Qf3 {[%emt 0:01:06]} Kf8 {[%emt 0:00:30]} 42. Rg4 {[%emt 0:02:44]} Ke7 {[%emt 0:00:30]} 43. Kg2 {[%emt 0:01:27]} Rg8 {[%emt 0:01:30]} 44. Rh1 {[%emt 0:01:13]} Raa8 {[%emt 0:00:30]} 45. Ng1 {[%emt 0:02:15]} Qh5 {[%emt 0:00:30]} 46. Qf1 {[%emt 0:00:52]} Kd7 {[%emt 0:00:30]} 47. Nf3 {[%emt 0:00:30]} Be7 {[%emt 0:00:30]} 48. Ng5 {[%emt 0:00:00]} Raf8 {[%emt 0:00:30]} 49. Qf2 {[%emt 0:00:40]} Rh8 {[%emt 0:01:30]} 50. Qe3 {[%emt 0:00:39]} Qh6 {[%emt 0:02:30]} 51. Rg3 {[%emt 0:02:06]} Qg7 {[%emt 0:00:30]} 52. Rf1 {[%emt 0:02:33]} Rh5 {[%emt 0:03:30]} 53. f5 {[%emt 0:00:52]} Bxg5 {[%emt 0:02:30]} 54. fxe6+ {[%emt 0:00:28]} fxe6 {[%emt 0:00:30]} 55. Rxg5 {[%emt 0:00:08]} Rxf1 {[%emt 0:00:30]} 56. Kxf1 {[%emt 0:00:33]} Qh6 {[%emt 0:00:30]} 57. Rg3 {[%emt 0:00:01]} Rf5+ {[%emt 0:00:30]} 58. Kg2 {[%emt 0:00:20]} Qh5 {[%emt 0:03:30]} 59. Rf3 {[%emt 0:01:37]} Ke7 {[%emt 0:01:30]} 60. Rxf5 {[%emt 0:02:24]} gxf5 {[%emt 0:00:30]} 61. Qf3 {[%emt 0:00:19]} Qh4 {[%emt 0:00:30]} 62. Qe3 {[%emt 0:01:06]} Kf7 {[%emt 0:00:30]} 63. Qf3 $15 {[%emt 0:00:05]} Qe4 {[%emt 0:01:30]} 64. Qxe4 {[%emt 0:00:42]} fxe4 {[%emt 0:00:30]} 65. Kg3 {[%emt 0:00:12]} Kg6 {[%emt 0:00:30]} 66. Kg4 {[%emt 0:00:00]} Kh6 {[%emt 0:00:30]} 67. Kh4 {[%emt 0:00:22]} Kg7 {[%emt 0:01:30]} 68. Kg4 {[%emt 0:00:46]} Kg6 {[%emt 0:00:30]} 69. h4 {[%emt 0:00:19]} Kh6 {[%emt 0:00:30]} 70. h5 {[%emt 0:00:04]} Kh7 {[%emt 0:00:49]} 71. Kh4 {[%emt 0:00:06]} Kg7 {[%emt 0:04:20]} 72. Kg4 {[%emt 0:00:17]} Kh6 {[%emt 0:00:34]} 73. Kh4 {[%emt 0:00:01]} e3 {[%emt 0:01:40]} 74. Kg3 {[%emt 0:00:05]} Kxh5 {[%emt 0:00:21]} 75. Kf3 {[%emt 0:00:05]} 1/2-1/2